[Event "GER-chT States Women 2022"]
[Site "Braunfels"]
[Date "2022.06.19"]
[Round "5.14"]
[White "Werner, Rosalie"]
[Black "Timofeeva, Galina"]
[Result "1-0"]
[ECO "B42"]
[WhiteElo "1712"]
[BlackElo "1979"]
[Annotator "TA"]
[PlyCount "57"]
[EventDate "2022.06.15"]
[EventType "swiss"]
[EventCountry "GER"]
[SourceTitle "playchess.com"]
[Source "ChessBase"]
[SourceQuality "1"]
[TimeControl "40/5400+30:1800+30"]

{[%evp 17,57,40,44,28,32,26,22,16,30,27,25,14,27,34,62,9,56,53,53,42,174,167,250,246,318,275,254,202,237,202,218,205,342,281,293,298,286,285,489,484,975,954]} 1. e4 {[%emt 0:00:02]} c5 {[%emt 0:00:04]} 2. Nf3 {[%emt 0:00:04]} e6 {[%emt 0:00:06]} 3. d4 {[%emt 0:00:05]} cxd4 {[%emt 0:00:05]} 4. Nxd4 {[%emt 0:00:06]} a6 {[%emt 0:00:03]} 5. Bd3 {[%emt 0:00:07]} Qc7 {[%emt 0:00:12]} 6. Qe2 {[%emt 0:00:24]} d6 {[%emt 0:02:07]} 7. c4 {[%emt 0:01:40]} Nf6 {[%emt 0:01:41]} 8. Nc3 {[%emt 0:01:05]} Be7 {[%emt 0:01:02]} 9. O-O {[%emt 0:01:24]} O-O {[%emt 0:01:07]} 10. Bd2 {[%emt 0:01:02] B42: Sicilian: Kan Variation: 5 Bd3.} Nbd7 {[%emt 0:06:52]} 11. Kh1 {[%emt 0:06:37]} Ne5 {[%emt 0:02:13]} 12. f4 {[%emt 0:09:31] The position is equal.} Nxd3 {[%emt 0:02:13]} 13. Qxd3 {[%emt 0:00:10]} Bd7 {[%emt 0:01:55]} 14. Rae1 {[%emt 0:02:38]} Rac8 {[%emt 0:24:39]} (14... b5 {keeps more tension.} 15. cxb5 axb5 16. e5 dxe5 17. fxe5 Ng4) 15. b3 {[%emt 0:00:34] [#]} Qc5 $146 {[%emt 0:08:22]} ({Predecessor:} 15... Bc6 16. f5 Qd7 17. Qg3 Kh8 18. Bg5 b5 19. Qh4 b4 20. Rf3 Ng8 21. f6 Bxf6 22. Rxf6 Nxf6 23. Bxf6 {0-1 (38) Hrbolka,L (2193)-Forman,S (2292) Czech Republic 2015}) 16. Rf3 {[%emt 0:11:37] White is more active.} (16. e5 $14 dxe5 17. fxe5) 16... Ng4 {[%emt 0:04:54]} (16... Rfd8 $11) 17. h3 $14 {[%emt 0:04:47]} e5 {[%emt 0:01:28]} 18. hxg4 {[%emt 0:01:45]} exd4 {[%emt 0:00:06] A mistake that costs the game.} (18... Qxd4 $14 19. Qxd4 exd4) 19. Nd5 $18 {[%emt 0:00:35]} Bd8 {[%emt 0:03:15]} (19... Rfe8 $142 20. Bb4 Qa7) 20. Bb4 {[%emt 0:04:24]} Qc6 {[%emt 0:00:12]} 21. f5 {[%emt 0:06:17]} ({Don't take} 21. Qxd4 $6 Bxg4 22. Rfe3 b5 $18) 21... b5 {[%emt 0:06:09]} 22. cxb5 {[%emt 0:03:42]} Qxb5 {[%emt 0:08:35]} 23. Bxd6 {[%emt 0:10:38]} Re8 {[%emt 0:02:31]} 24. Qxd4 {[%emt 0:02:41]} Rc2 {[%emt 0:03:33]} (24... Bh4 $142) 25. a4 {[%emt 0:07:40]} Qb7 {[%emt 0:00:36]} 26. Bb4 {[%emt 0:04:55] Strongly threatening Bc3.} Bh4 {[%emt 0:05:39]} 27. Rd1 {[%emt 0:02:51]} Qc6 {[%emt 0:03:59]} (27... Bc6 28. Bc3 f6) 28. Bc3 {[%emt 0:03:59][%csl Gc3][%cal Rd4g7] [#]} ({Weaker is} 28. Rc3 Rxc3 29. Bxc3 (29. Nxc3 Qh6 $16) 29... Qh6 $18) 28... f6 {[%emt 0:00:11]} (28... Qh6 $142 29. Rh3 Bc6) 29. Nb4 {[%emt 0:03:32][%csl LRc2,LRc6,LRd7] Weighted Error Value: White=0.19 (very precise) /Black=0.46} 1-0

[Event "GER-chT States Women 2022"]
[Site "Braunfels"]
[Date "2022.06.19"]
[Round "5.15"]
[White "Noppes, Marina"]
[Black "Krausse, Vanessa"]
[Result "1-0"]
[ECO "E94"]
[WhiteElo "1922"]
[BlackElo "1632"]
[Annotator "TA"]
[PlyCount "67"]
[EventDate "2022.06.15"]
[EventType "swiss"]
[EventCountry "GER"]
[SourceTitle "playchess.com"]
[Source "ChessBase"]
[SourceQuality "1"]
[TimeControl "40/5400+30:1800+30"]

{[%evp 20,67,20,34,75,83,124,75,76,64,85,21,15,0,25,7,11,-28,129,118,134,0,166,166,168,167,225,214,211,192,195,118,415,412,479,478,561,562,577,567,522,513,1686,1727,29970,29971,29964,29967,6015,1251]} 1. d4 {[%emt 0:02:40] Moehring,G} Nf6 {[%emt 0:00:11]} 2. c4 {[%emt 0:00:30]} g6 {[%emt 0:00:10]} 3. Nf3 {[%emt 0:00:14]} Bg7 {[%emt 0:00:08]} 4. Nc3 {[%emt 0:00:05]} O-O {[%emt 0:00:13]} 5. e4 {[%emt 0:00:07]} d6 {[%emt 0:00:21]} 6. Be2 {[%emt 0:00:10]} e5 {[%emt 0:00:11]} 7. O-O {[%emt 0:00:11]} exd4 {[%emt 0:01:06]} 8. Nxd4 {[%emt 0:00:09]} Re8 {[%emt 0:00:33]} 9. f3 {[%emt 0:02:03]} c6 {[%emt 0:01:19]} 10. Bg5 {[%emt 0:05:12]} h6 {[%emt 0:04:52]} 11. Bh4 {[%emt 0:00:09]} g5 {[%emt 0:01:34] E94: King's Indian: Classical: 6 Be2 e5 7 0-0: Various Black 7th moves.} 12. Bf2 {[%emt 0:00:07]} d5 {[%emt 0:00:46] [#]} 13. exd5 $146 {[%emt 0:12:33]} (13. cxd5 $142 cxd5 14. Bb5) ({Predecessor:} 13. cxd5 cxd5 14. exd5 Nxd5 15. Nxd5 Qxd5 16. Nb5 Qxd1 17. Raxd1 Na6 18. Rd2 Be6 19. b3 {½-½ (62) Moehring,G (2340)-Kosanovic,G (2330) Gorzow Wielkopolski 1987 EXT 2015 [Moehring,G]}) 13... cxd5 $16 {[%emt 0:04:02] White is better.} 14. Qb3 {[%emt 0:12:26][%cal Rc4d5]} Nc6 {[%emt 0:10:47]} 15. Nxc6 {[%emt 0:19:28]} (15. Rad1 $16) 15... bxc6 $11 {[%emt 0:02:15]} 16. Rad1 $36 {[%emt 0:00:39][%cal Rc4d5][%mdl 2048] White has the initiative.} Bf5 {[%emt 0:15:02]} 17. Qa4 {[%emt 0:06:58]} Nd7 {[%emt 0:16:58]} 18. Rd2 {[%emt 0:08:31]} Nb6 $2 {[%emt 0:07:33]} (18... d4 $1 $11 19. Ne4 (19. Bxd4 Nc5 $11) 19... Bxe4 20. fxe4 Nc5 21. Qxc6 Nxe4) 19. Qxc6 $16 {[%emt 0:07:46][%cal Rc4d5]} Rc8 {[%emt 0:05:59] [#]} 20. Bxb6 {[%emt 0:00:39] White is more active.} Qxb6+ $2 {[%emt 0:05:34]} (20... axb6 $11 21. Qb5 (21. Qxd5 Qe7 $17) 21... Bxc3 22. bxc3 {[#]} Rxe2 $1 23. Rxe2 Bd3) 21. Qxb6 $18 {[%emt 0:00:07]} axb6 {[%emt 0:00:07]} 22. Nxd5 {[%emt 0:03:14]} Re6 {[%emt 0:03:25]} (22... Rb8 $142 23. f4 g4) 23. Rfd1 {[%emt 0:01:21]} Rce8 {[%emt 0:06:03]} 24. Kf1 {[%emt 0:00:22] Hoping for Nc7.} Be5 {[%emt 0:02:45] Prevents Nc7.} 25. f4 {[%emt 0:06:37]} (25. b3 $18) 25... Bg7 $2 {[%emt 0:04:32][%mdl 8192] Black cannot hold the game after this.} (25... gxf4 $16 {was worth a try.} 26. Bf3 Kg7) 26. Nc7 {[%emt 0:00:27][%csl LRe6,LRe8]} Rxe2 {[%emt 0:00:55]} 27. Rxe2 {[%emt 0:03:13]} Rxe2 {[%emt 0:00:27]} 28. Rd8+ {[%emt 0:00:06]} ({Not} 28. Kxe2 Bg4+ 29. Ke1 Bxd1 $18) 28... Kh7 {[%emt 0:00:23]} 29. Kxe2 {[%emt 0:00:08]} Bxb2 {[%emt 0:00:30]} 30. Rd6 {[%emt 0:02:24]} Bb1 {[%emt 0:00:42]} (30... gxf4 $142 31. Nd5 Bg4+ 32. Kd3 Bf5+ 33. Kd2 Kg7 34. Nxf4 Be5 35. Nh5+ Kf8) 31. Rxb6 {[%emt 0:00:47]} Bxa2 {[%emt 0:01:10]} 32. Rxb2 {[%emt 0:00:14]} Bxc4+ {[%emt 0:00:04]} 33. Ke3 {[%emt 0:00:16]} Kg6 {[%emt 0:00:21]} 34. g4 {[%emt 0:00:30] Weighted Error Value: White=0.29 (precise) /Black=1.02} 1-0

[Event "GER-chT States Women 2022"]
[Site "Braunfels"]
[Date "2022.06.19"]
[Round "5.16"]
[White "Engel, Esther"]
[Black "Roesler, Hannah Clara"]
[Result "1/2-1/2"]
[ECO "A57"]
[WhiteElo "1751"]
[BlackElo "1718"]
[Annotator "NA RC"]
[PlyCount "45"]
[EventDate "2022.06.15"]
[EventType "swiss"]
[EventCountry "GER"]
[SourceTitle "playchess.com"]
[Source "ChessBase"]
[SourceQuality "1"]
[TimeControl "40/5400+30:1800+30"]

1. d4 {[%emt 0:00:03]} Nf6 {[%emt 0:00:05]} 2. c4 {[%emt 0:00:05]} c5 {[%emt 0:00:03]} 3. d5 {[%emt 0:00:09]} b5 {[%emt 0:00:05]} 4. cxb5 {[%emt 0:00:12]} a6 {[%emt 0:00:05]} 5. b6 {[%emt 0:00:11]} Qxb6 {[%emt 0:00:14]} 6. Nc3 {[%emt 0:00:11]} d6 {[%emt 0:00:42]} 7. e4 {[%emt 0:00:14]} g6 {[%emt 0:00:35]} 8. a4 {[%emt 0:00:06]} Bg7 {[%emt 0:00:59]} 9. a5 {[%emt 0:00:13]} Qd8 {[%emt 0:06:06]} 10. f4 {[%emt 0:01:34]} O-O {[%emt 0:10:22]} 11. Nf3 {[%emt 0:00:09]} Bg4 {[%emt 0:01:41]} 12. Be2 {[%emt 0:08:16]} Bxf3 {[%emt 0:00:24]} 13. Bxf3 {[%emt 0:03:11]} Nbd7 {[%emt 0:00:58]} 14. O-O {[%emt 0:04:29]} Ne8 {[%emt 0:02:06]} 15. Kh1 {[%emt 0:04:10]} Rb8 {[%emt 0:07:40]} 16. Be2 {[%emt 0:01:24]} Nc7 {[%emt 0:01:15]} 17. Bc4 {[%emt 0:01:16]} Nb5 {[%emt 0:03:19]} 18. Qd3 {[%emt 0:12:42]} Nd4 {[%emt 0:19:32]} 19. Ne2 {[%emt 0:11:03]} Nb5 {[%emt 0:05:12]} 20. Nc3 {[%emt 0:01:20]} Nd4 {[%emt 0:02:05]} 21. Ne2 {[%emt 0:01:15]} Nb5 {[%emt 0:02:30]} 22. Nc3 {[%emt 0:05:15]} Nd4 {[%emt 0:02:13]} 23. Ne2 {[%emt 0:02:29]} 1/2-1/2

[Event "GER-chT States Women 2022"]
[Site "Braunfels"]
[Date "2022.06.19"]
[Round "5.17"]
[White "Khrapko, Marharyta"]
[Black "Koehler, Inken"]
[Result "1-0"]
[ECO "B32"]
[WhiteElo "2110"]
[BlackElo "2002"]
[Annotator "NA RC"]
[PlyCount "145"]
[EventDate "2022.06.15"]
[EventType "swiss"]
[EventCountry "GER"]
[SourceTitle "playchess.com"]
[Source "ChessBase"]
[SourceQuality "1"]
[TimeControl "40/5400+30:1800+30"]

1. e4 {[%emt 0:00:01]} c5 {[%emt 0:00:05]} 2. Nf3 {[%emt 0:00:04]} Nc6 {[%emt 0:00:04]} 3. d4 {[%emt 0:00:08]} cxd4 {[%emt 0:00:05]} 4. Nxd4 {[%emt 0:00:01]} e5 {[%emt 0:00:06]} 5. Nb5 {[%emt 0:00:04]} a6 {[%emt 0:00:07]} 6. Nd6+ {[%emt 0:00:07]} Bxd6 {[%emt 0:00:05]} 7. Qxd6 {[%emt 0:00:03]} Qf6 {[%emt 0:00:06]} 8. Qd2 {[%emt 0:01:17]} Nge7 {[%emt 0:00:26]} 9. b3 {[%emt 0:03:25]} d5 {[%emt 0:31:32]} 10. exd5 {[%emt 0:00:05]} Nd4 {[%emt 0:00:05]} 11. c3 {[%emt 0:01:02]} Ndf5 {[%emt 0:08:26]} 12. Bb2 {[%emt 0:05:10]} Nd6 {[%emt 0:05:49]} 13. c4 {[%emt 0:02:30]} Bf5 {[%emt 0:08:06]} 14. Nc3 {[%emt 0:01:43]} Rc8 {[%emt 0:01:38]} 15. f3 {[%emt 0:01:25]} O-O {[%emt 0:01:46]} 16. Bd3 {[%emt 0:04:12]} b5 {[%emt 0:04:12]} 17. cxb5 {[%emt 0:01:10]} axb5 {[%emt 0:00:10]} 18. O-O {[%emt 0:00:52]} Qg6 {[%emt 0:08:21]} 19. Bxf5 {[%emt 0:00:58]} Qxf5 {[%emt 0:00:33]} 20. Rfe1 {[%emt 0:04:54]} Rfd8 {[%emt 0:03:34]} 21. Rac1 {[%emt 0:00:31]} b4 {[%emt 0:15:39]} 22. Na4 {[%emt 0:01:13]} Rxc1 {[%emt 0:00:21]} 23. Qxc1 {[%emt 0:00:17]} Rc8 {[%emt 0:01:40]} 24. Qd2 {[%emt 0:01:11]} Rc2 {[%emt 0:03:55]} 25. Qe3 {[%emt 0:04:59]} f6 {[%emt 0:01:59]} 26. Rd1 {[%emt 0:06:31]} Qg6 {[%emt 0:00:14]} 27. g4 {[%emt 0:01:02]} Nef5 {[%emt 0:01:30]} 28. Qd3 {[%emt 0:06:06]} Nh4 {[%emt 0:00:20]} 29. a3 {[%emt 0:00:18]} Rg2+ {[%emt 0:01:18]} 30. Kf1 {[%emt 0:01:05]} Rxh2 {[%emt 0:00:52]} 31. Qxg6 {[%emt 0:00:47]} hxg6 {[%emt 0:00:10]} 32. Rd3 {[%emt 0:00:19]} e4 {[%emt 0:01:07]} 33. fxe4 {[%emt 0:00:38]} Nxe4 {[%emt 0:00:01]} 34. axb4 {[%emt 0:01:30]} Rf2+ {[%emt 0:01:29]} 35. Ke1 {[%emt 0:00:00]} Ng2+ {[%emt 0:01:16]} 36. Kd1 {[%emt 0:00:21]} Nf4 {[%emt 0:00:35]} 37. Rd4 {[%emt 0:01:07]} Nd6 {[%emt 0:00:30]} 38. Bc1 {[%emt 0:01:20]} g5 {[%emt 0:00:31]} 39. Nc3 {[%emt 0:00:45]} Rf3 {[%emt 0:00:27]} 40. Bd2 {[%emt 0:00:54]} Nd3 {[%emt 0:00:38]} 41. b5 {[%emt 0:30:56]} Nc5 {[%emt 0:02:38]} 42. Rb4 {[%emt 0:00:00]} Kf7 {[%emt 0:04:11]} 43. b6 {[%emt 0:00:00]} Ke7 {[%emt 0:02:04]} 44. Kc2 {[%emt 0:00:00]} Kd7 {[%emt 0:02:56]} (44... Rh3 $142 45. Na4 Ncb7) 45. Nb5 {[%emt 0:00:00]} Ndb7 {[%emt 0:04:16]} 46. Nd4 {[%emt 0:00:00]} Rf2 {[%emt 0:01:05]} 47. Nf5 {[%emt 0:00:00]} g6 {[%emt 0:01:20] [#]} 48. Ne3 $1 {[%emt 0:00:00]} f5 {[%emt 0:01:31]} 49. Rc4 {[%emt 0:00:00]} Ne4 {[%emt 0:04:30]} 50. Rc7+ {[%emt 0:00:00]} Kd8 {[%emt 0:00:22]} 51. Nc4 $18 {[%emt 0:00:00]} ({Less strong is} 51. Rxb7 Rxd2+ 52. Kc1 Rd3 53. gxf5 (53. Rb8+ Kd7 $11) 53... gxf5 54. Nxf5 Rxd5 $16) 51... Nxd2 {[%emt 0:02:03]} 52. Nxd2 {[%emt 0:00:00]} Nd6 {[%emt 0:00:07]} 53. Kd3 {[%emt 0:00:00]} fxg4 {[%emt 0:01:23]} 54. Rc6 {[%emt 0:00:00]} Nb7 {[%emt 0:04:04]} 55. Rxg6 {[%emt 0:00:00]} g3 {[%emt 0:01:34]} 56. Rxg5 {[%emt 0:00:00]} Rf6 {[%emt 0:01:44]} 57. Rxg3 {[%emt 0:03:01]} Rxb6 {[%emt 0:00:05]} 58. Kc4 {[%emt 0:00:13]} Rh6 {[%emt 0:01:33]} 59. Rg8+ {[%emt 0:01:04]} Kc7 {[%emt 0:00:18]} 60. Rg7+ {[%emt 0:00:17]} Kb6 {[%emt 0:00:19]} 61. Kb4 {[%emt 0:00:19]} Rh4+ {[%emt 0:01:34]} 62. Nc4+ {[%emt 0:00:01]} Ka6 {[%emt 0:00:15]} 63. Rg6+ {[%emt 0:00:13]} Ka7 {[%emt 0:00:04]} 64. Kb5 {[%emt 0:00:07]} Rh5 {[%emt 0:00:16]} 65. Kc6 {[%emt 0:00:50]} Nd8+ {[%emt 0:00:29]} 66. Kc5 {[%emt 0:00:20]} Nb7+ {[%emt 0:00:10]} 67. Kd4 {[%emt 0:00:09]} Rh4+ {[%emt 0:00:29]} 68. Kc3 {[%emt 0:00:01]} Nc5 {[%emt 0:01:11]} 69. d6 {[%emt 0:01:00]} Rh3+ {[%emt 0:00:54]} 70. Kb4 {[%emt 0:00:08]} Nxb3 {[%emt 0:00:31]} 71. d7 {[%emt 0:00:03]} Rd3 {[%emt 0:00:03]} 72. Nd6 {[%emt 0:00:55]} Nd4 {[%emt 0:00:35]} 73. Kc4 {[%emt 0:00:10]} 1-0

[Event "GER-chT States Women 2022"]
[Site "Braunfels"]
[Date "2022.06.19"]
[Round "5.18"]
[White "Braeutigam, Irina"]
[Black "Birkholz, Olga"]
[Result "0-1"]
[ECO "B53"]
[WhiteElo "2013"]
[BlackElo "1993"]
[Annotator "NA RC"]
[PlyCount "92"]
[EventDate "2022.06.15"]
[EventType "swiss"]
[EventCountry "GER"]
[SourceTitle "playchess.com"]
[Source "ChessBase"]
[SourceQuality "1"]
[TimeControl "40/5400+30:1800+30"]

1. e4 {[%emt 0:00:05]} c5 {[%emt 0:00:01]} 2. Nf3 {[%emt 0:00:05]} d6 {[%emt 0:00:01]} 3. d4 {[%emt 0:00:31]} cxd4 {[%emt 0:00:02]} 4. Qxd4 {[%emt 0:00:06]} Nc6 {[%emt 0:00:10]} 5. Qe3 {[%emt 0:00:04]} Nf6 {[%emt 0:00:44]} 6. h3 {[%emt 0:00:11]} g6 {[%emt 0:00:23]} 7. Be2 {[%emt 0:00:19]} Bg7 {[%emt 0:00:09]} 8. O-O {[%emt 0:00:08]} O-O {[%emt 0:00:25]} 9. Rd1 {[%emt 0:00:25]} Qc7 {[%emt 0:00:43]} 10. Nc3 {[%emt 0:02:49]} a6 {[%emt 0:02:57]} 11. a4 {[%emt 0:07:39]} Nb4 {[%emt 0:05:45]} 12. Bd3 {[%emt 0:06:26]} Be6 {[%emt 0:01:14]} 13. Qf4 {[%emt 0:07:11]} Nxd3 {[%emt 0:07:54]} 14. cxd3 {[%emt 0:03:44]} Bb3 {[%emt 0:04:32]} 15. Re1 {[%emt 0:01:16]} Nh5 {[%emt 0:01:42]} 16. Qh4 {[%emt 0:21:02]} Bf6 {[%emt 0:04:13]} 17. Bg5 {[%emt 0:02:24]} Bxg5 {[%emt 0:07:21]} 18. Qxg5 {[%emt 0:00:36]} f6 {[%emt 0:05:08]} 19. Qe3 {[%emt 0:01:30]} e5 {[%emt 0:00:55]} 20. d4 {[%emt 0:02:51]} Be6 {[%emt 0:03:00]} 21. Rac1 {[%emt 0:13:46]} Qe7 {[%emt 0:01:50]} 22. Ne2 {[%emt 0:01:18]} Rac8 {[%emt 0:09:31]} 23. Nd2 {[%emt 0:03:12]} g5 {[%emt 0:01:23]} 24. d5 {[%emt 0:07:13]} Bd7 {[%emt 0:02:06]} 25. Qb3 {[%emt 0:00:40]} b5 {[%emt 0:01:40]} 26. axb5 {[%emt 0:00:57]} axb5 {[%emt 0:03:41]} 27. Rxc8 {[%emt 0:03:04]} Rxc8 {[%emt 0:00:06]} 28. Rc1 {[%emt 0:00:58]} Rxc1+ {[%emt 0:07:25]} 29. Nxc1 {[%emt 0:00:04]} Nf4 {[%emt 0:00:09]} 30. Qe3 {[%emt 0:03:05]} f5 {[%emt 0:08:06]} 31. Ne2 {[%emt 0:03:43]} fxe4 {[%emt 0:02:36]} 32. Qxe4 {[%emt 0:00:30]} Qf7 {[%emt 0:05:36]} 33. Nxf4 {[%emt 0:01:13]} gxf4 {[%emt 0:00:10]} 34. f3 $17 {[%emt 0:02:07]} (34. Qd3 $11 {remains equal.}) 34... Bf5 {[%emt 0:00:31]} 35. Qe2 {[%emt 0:01:31]} Qxd5 {[%emt 0:00:09]} 36. Ne4 {[%emt 0:00:13]} Qd4+ {[%emt 0:03:45]} 37. Kh2 {[%emt 0:00:13]} d5 {[%emt 0:01:31]} 38. Nf6+ {[%emt 0:04:35]} Kf7 {[%emt 0:00:59]} 39. Nh5 {[%emt 0:00:24]} Kg6 {[%emt 0:02:49]} 40. g4 {[%emt 0:00:38]} Bd3 {[%emt 0:00:11]} 41. Qd2 {[%emt 0:30:33]} Qe3 {[%emt 0:38:27]} 42. Qxe3 {[%emt 0:00:00]} fxe3 {[%emt 0:00:00]} 43. Kg2 {[%emt 0:00:00]} d4 {[%emt 0:00:00]} 44. f4 {[%emt 0:00:00]} Be4+ {[%emt 0:00:00]} 45. Kf1 {[%emt 0:00:00]} d3 {[%emt 0:00:00]} 46. fxe5 {[%emt 0:00:00]} d2 {[%emt 0:00:00]} 0-1

[Event "GER-chT States Women 2022"]
[Site "Braunfels"]
[Date "2022.06.19"]
[Round "5.19"]
[White "Stangl, Anita"]
[Black "Gressmann, Hanna"]
[Result "0-1"]
[ECO "B07"]
[WhiteElo "2041"]
[BlackElo "1892"]
[Annotator "NA RC"]
[PlyCount "118"]
[EventDate "2022.06.15"]
[EventType "swiss"]
[EventCountry "GER"]
[SourceTitle "playchess.com"]
[Source "ChessBase"]
[SourceQuality "1"]
[TimeControl "40/5400+30:1800+30"]

1. e4 {[%emt 0:00:01]} d6 {[%emt 0:00:07]} 2. d4 {[%emt 0:00:09]} Nf6 {[%emt 0:00:07]} 3. Nc3 {[%emt 0:00:40]} Nbd7 {[%emt 0:00:15]} 4. Nf3 {[%emt 0:02:02]} e5 {[%emt 0:00:19]} 5. Bc4 {[%emt 0:03:07]} Be7 {[%emt 0:01:00]} 6. O-O {[%emt 0:02:31]} O-O {[%emt 0:00:54]} 7. h3 {[%emt 0:01:21]} c6 {[%emt 0:01:16]} 8. a4 {[%emt 0:01:17]} a5 {[%emt 0:01:13] 8...h6 is the modern continuation.} 9. Qe2 {[%emt 0:04:21]} h6 {[%emt 0:03:37]} 10. b3 {[%emt 0:04:49] [#]} exd4 $146 {[%emt 0:05:16]} ({Predecessor:} 10... Nh7 11. Nd1 exd4 12. Nxd4 Bf6 13. c3 Re8 14. Qh5 Ne5 15. Be2 Ng6 16. Bd3 Ng5 17. Bxg5 hxg5 {0-1 (50) Martorell Aguado,J (2197)-Garcia Castro,P (2336) Barcelona 2006}) 11. Nxd4 {[%emt 0:03:40]} Ne5 {[%emt 0:04:22]} 12. Ba3 {[%emt 0:04:53]} Re8 {[%emt 0:07:48]} 13. Rad1 {[%emt 0:05:47]} Bf8 {[%emt 0:17:18]} 14. Bd3 {[%emt 0:09:07]} Nxd3 {[%emt 0:10:28]} 15. Qxd3 {[%emt 0:03:17]} d5 {[%emt 0:08:22]} 16. Bxf8 {[%emt 0:00:50]} Rxf8 {[%emt 0:02:46]} 17. e5 {[%emt 0:06:34]} Nh7 {[%emt 0:01:43]} 18. f4 {[%emt 0:14:25]} Re8 {[%emt 0:01:27]} 19. Rfe1 {[%emt 0:01:15]} Qh4 {[%emt 0:07:01]} 20. Nce2 {[%emt 0:04:11]} Nf8 {[%emt 0:03:47]} 21. Kh2 {[%emt 0:08:21]} Ng6 {[%emt 0:06:37]} 22. Nf3 {[%emt 0:01:19]} Qe7 {[%emt 0:00:56]} 23. g4 {[%emt 0:09:31]} b6 {[%emt 0:02:52]} 24. Qe3 {[%emt 0:03:58]} Qc7 {[%emt 0:02:44]} 25. Ned4 {[%emt 0:00:39]} Bd7 {[%emt 0:01:08]} 26. Kg2 {[%emt 0:00:37]} (26. f5 $5 {[%cal Rf5g6]} Nxe5 27. Nxe5 $11) 26... c5 {[%emt 0:02:38]} 27. Nf5 {[%emt 0:00:49]} d4 {[%emt 0:02:11]} 28. Qd2 {[%emt 0:00:08]} Bc6 {[%emt 0:00:46]} (28... f6 $17 29. Nd6 Rf8) 29. Nd6 {[%emt 0:00:16]} Nh4+ {[%emt 0:00:26]} 30. Kg3 {[%emt 0:00:22]} Nxf3 {[%emt 0:00:25]} 31. Nxe8 {[%emt 0:00:26]} Rxe8 {[%emt 0:00:15]} 32. Qd3 {[%emt 0:00:30]} Nxe1 {[%emt 0:00:15]} 33. Rxe1 {[%emt 0:00:01]} Qd8 {[%emt 0:01:42]} 34. Re2 {[%emt 0:02:36]} Qd5 {[%emt 0:00:30]} 35. Rf2 $19 {[%emt 0:02:29]} g5 {[%emt 0:01:06]} 36. Qf5 {[%emt 0:00:54]} Bd7 {[%emt 0:02:36]} 37. Qf6 {[%emt 0:00:13]} Qe6 {[%emt 0:00:10]} 38. fxg5 {[%emt 0:00:20]} Qxe5+ {[%emt 0:01:05]} 39. Qxe5 {[%emt 0:00:19]} Rxe5 {[%emt 0:00:04]} 40. gxh6 {[%emt 0:00:04]} Be6 {[%emt 0:00:35]} 41. Rf6 {[%emt 0:31:38]} Rg5 {[%emt 0:04:27]} 42. Rf4 {[%emt 0:00:00]} Rg6 {[%emt 0:03:52]} 43. h4 {[%emt 0:00:00]} Rxh6 {[%emt 0:00:20]} 44. g5 {[%emt 0:00:00]} Rg6 {[%emt 0:01:50]} 45. Re4 {[%emt 0:00:00]} Bf5 {[%emt 0:03:08]} 46. Re2 {[%emt 0:00:00]} Re6 {[%emt 0:01:01]} 47. Rf2 {[%emt 0:00:00]} Bg6 {[%emt 0:00:26]} 48. Kg4 {[%emt 0:00:00]} Kg7 {[%emt 0:02:00]} 49. h5 {[%emt 0:00:00]} Bh7 {[%emt 0:02:21]} 50. Kg3 {[%emt 0:00:00]} d3 {[%emt 0:02:43]} 51. cxd3 {[%emt 0:00:00]} Re3+ {[%emt 0:01:41]} 52. Kg4 {[%emt 0:00:00]} Bxd3 {[%emt 0:01:05]} 53. h6+ {[%emt 0:00:00]} Kf8 {[%emt 0:01:20]} 54. Rh2 {[%emt 0:00:00]} Bh7 {[%emt 0:00:36]} 55. Rb2 {[%emt 0:00:00]} Ke7 {[%emt 0:00:36]} 56. Kf4 {[%emt 0:00:00]} Re4+ {[%emt 0:00:52]} 57. Kf3 {[%emt 0:00:00]} Ke6 {[%emt 0:01:17]} 58. Rd2 {[%emt 0:00:00]} Rb4 {[%emt 0:00:50]} 59. Rd8 {[%emt 0:00:00]} Kf5 {[%emt 0:01:07]} 0-1